[Event "*** Titled Tuesday 3|2 Blitz (Late)"]
[Site "Chess.com"]
[Date "2016.11.01"]
[Round "7"]
[White "micfel"]
[Black "GianmarcoVaR"]
[Result "0-1"]
[WhiteElo "2290"]
[BlackElo "2419"]
[TimeControl "180+2"]
[EndTime "18:31:55 PDT"]
[Termination "GianmarcoVaR won by resignation"]

1. e4 {[%clk 0:02:59.9]} 1... c5 {[%clk 0:02:48.7]} 2. Nf3 {[%clk 0:02:59.8]}
2... d6 {[%clk 0:02:50.1]} 3. d4 {[%clk 0:03:00.4]} 3... cxd4 {[%clk 0:02:51.5]}
4. Nxd4 {[%clk 0:03:01.4]} 4... Nf6 {[%clk 0:02:52.9]} 5. Nc3 {[%clk 0:03:02.2]}
5... a6 {[%clk 0:02:54.2]} 6. Bg5 {[%clk 0:03:00.4]} 6... e6 {[%clk 0:02:53.3]}
7. f4 {[%clk 0:03:01.2]} 7... h6 {[%clk 0:02:53.2]} 8. Bh4 {[%clk 0:03:01.4]}
8... Nc6 {[%clk 0:02:54.4]} 9. Nb3 {[%clk 0:03:01.8]} 9... Qb6 {[%clk
0:02:54.6]} 10. Bf2 {[%clk 0:03:01.9]} 10... Qc7 {[%clk 0:02:55.8]} 11. Qd2
{[%clk 0:03:00.1]} 11... b5 {[%clk 0:02:51.4]} 12. Bd3 {[%clk 0:02:58.1]} 12...
Be7 {[%clk 0:02:36.2]} 13. h3 {[%clk 0:02:54.5]} 13... g5 {[%clk 0:02:37.2]} 14.
fxg5 {[%clk 0:02:51.9]} 14... hxg5 {[%clk 0:02:38.5]} 15. O-O-O {[%clk
0:02:50.5]} 15... Bb7 {[%clk 0:02:33.6]} 16. Be3 {[%clk 0:02:49.9]} 16... b4
{[%clk 0:02:14.5]} 17. Ne2 {[%clk 0:02:49.8]} 17... Rg8 {[%clk 0:02:15.5]} 18.
Kb1 {[%clk 0:02:41.4]} 18... a5 {[%clk 0:02:01.6]} 19. Ng3 {[%clk 0:02:29.9]}
19... Nd7 {[%clk 0:01:51.1]} 20. Qf2 {[%clk 0:02:27.4]} 20... a4 {[%clk
0:01:25.8]} 21. Nd4 {[%clk 0:02:27.2]} 21... Nxd4 {[%clk 0:01:26.7]} 22. Bxd4
{[%clk 0:02:27.8]} 22... Bc6 {[%clk 0:01:24.9]} 23. Rhf1 {[%clk 0:02:23.5]}
23... Rf8 {[%clk 0:00:49.1]} 24. Bg7 {[%clk 0:02:23.1]} 24... O-O-O {[%clk
0:00:43.9]} 25. Bxf8 {[%clk 0:02:22.1]} 25... Rxf8 {[%clk 0:00:45]} 26. Ne2
{[%clk 0:02:18.8]} 26... Ne5 {[%clk 0:00:44.1]} 27. Nd4 {[%clk 0:02:18.9]} 27...
Bb7 {[%clk 0:00:36.9]} 28. Nb5 {[%clk 0:02:13.6]} 28... Qc5 {[%clk 0:00:33.1]}
29. Qxc5+ {[%clk 0:02:11.9]} 29... dxc5 {[%clk 0:00:33.4]} 30. b3 {[%clk
0:02:03.9]} 30... a3 {[%clk 0:00:30.1]} 31. Rfe1 {[%clk 0:01:53.1]} 31... Rd8
{[%clk 0:00:20]} 32. Kc1 {[%clk 0:01:41.1]} 32... Nxd3+ {[%clk 0:00:15.2]} 33.
Rxd3 {[%clk 0:01:38.9]} 33... Rxd3 {[%clk 0:00:15.6]} 34. cxd3 {[%clk
0:01:39.6]} 34... Ba6 {[%clk 0:00:17.3]} 35. Rf1 {[%clk 0:01:36.4]} 35... Bxb5
{[%clk 0:00:14]} 36. Rxf7 {[%clk 0:01:36.4]} 36... Kd7 {[%clk 0:00:15.3]} 37.
Kd2 {[%clk 0:01:36.6]} 37... Kd8 {[%clk 0:00:10.8]} 38. g3 {[%clk 0:01:31.2]}
38... Be8 {[%clk 0:00:10.4]} 39. Rg7 {[%clk 0:01:28.8]} 39... Bf6 {[%clk
0:00:11.5]} 40. Rg8 {[%clk 0:01:29.3]} 40... Ke7 {[%clk 0:00:12.3]} 41. h4
{[%clk 0:01:27.8]} 41... Kf7 {[%clk 0:00:11.4]} 42. Rxg5 {[%clk 0:01:16.9]}
42... Bxg5+ {[%clk 0:00:12.3]} 43. hxg5 {[%clk 0:01:17.8]} 43... e5 {[%clk
0:00:11.3]} 44. Ke3 {[%clk 0:01:15]} 44... Kg6 {[%clk 0:00:12.3]} 0-1

[Event "*** Titled Tuesday 3|2 Blitz (Late)"]
[Site "Chess.com"]
[Date "2016.11.01"]
[Round "7"]
[White "Aygehovit1992"]
[Black "Wilsonpalencia"]
[Result "0-1"]
[WhiteElo "2447"]
[BlackElo "2421"]
[TimeControl "180+2"]
[EndTime "18:32:08 PDT"]
[Termination "Wilsonpalencia won by resignation"]

1. e4 {[%clk 0:03:01.9]} 1... c5 {[%clk 0:02:49.2]} 2. Nf3 {[%clk 0:03:02.5]}
2... d6 {[%clk 0:02:49]} 3. d4 {[%clk 0:03:04]} 3... cxd4 {[%clk 0:02:43.9]} 4.
Nxd4 {[%clk 0:03:05.9]} 4... Nf6 {[%clk 0:02:44.6]} 5. Nc3 {[%clk 0:03:07.4]}
5... g6 {[%clk 0:02:45.4]} 6. Be2 {[%clk 0:03:06]} 6... Bg7 {[%clk 0:02:43.6]}
7. O-O {[%clk 0:03:07.5]} 7... Nc6 {[%clk 0:02:40.1]} 8. Nb3 {[%clk 0:03:08]}
8... O-O {[%clk 0:02:40.2]} 9. Re1 {[%clk 0:03:09.2]} 9... Be6 {[%clk
0:02:40.6]} 10. Bf1 {[%clk 0:03:09.6]} 10... a5 {[%clk 0:02:26.3]} 11. a4 {[%clk
0:03:07.5]} 11... Rc8 {[%clk 0:02:24.4]} 12. Nd5 {[%clk 0:03:07]} 12... Ne5
{[%clk 0:01:44.1]} 13. Bg5 {[%clk 0:02:53]} 13... Nxd5 {[%clk 0:01:40.7]} 14.
exd5 {[%clk 0:02:52.7]} 14... Bg4 {[%clk 0:01:41.2]} 15. Qd2 {[%clk 0:02:50.7]}
15... h6 {[%clk 0:01:37.5]} 16. Bh4 {[%clk 0:02:33.2]} 16... g5 {[%clk
0:01:33.6]} 17. Bg3 {[%clk 0:02:33.3]} 17... Nc4 {[%clk 0:01:33.5]} 18. Bxc4
{[%clk 0:02:32.3]} 18... Rxc4 {[%clk 0:01:33.9]} 19. c3 {[%clk 0:02:18.1]} 19...
Qb6 {[%clk 0:01:30.5]} 20. Nc1 {[%clk 0:02:14.3]} 20... Bf6 {[%clk 0:01:20.1]}
21. h3 {[%clk 0:01:53.1]} 21... Bf5 {[%clk 0:01:15.4]} 22. Nd3 {[%clk
0:01:42.8]} 22... Rfc8 {[%clk 0:01:12.1]} 23. Re3 {[%clk 0:01:37.6]} 23... Re4
{[%clk 0:01:05.3]} 24. Rxe4 {[%clk 0:01:36.1]} 24... Bxe4 {[%clk 0:01:03.4]} 25.
Ne1 {[%clk 0:00:53.7]} 25... Rc5 {[%clk 0:00:56]} 26. Nf3 {[%clk 0:00:52.7]}
26... Rxd5 {[%clk 0:00:47.3]} 27. Qe2 {[%clk 0:00:53.8]} 27... Bxf3 {[%clk
0:00:44.1]} 28. gxf3 {[%clk 0:00:47.7]} 28... Qb3 {[%clk 0:00:41.6]} 29. f4
{[%clk 0:00:38.8]} 29... b5 {[%clk 0:00:39.9]} 30. fxg5 {[%clk 0:00:37.4]} 30...
hxg5 {[%clk 0:00:40.2]} 31. Ra3 {[%clk 0:00:20]} 31... Rd1+ {[%clk 0:00:35.9]}
32. Kh2 {[%clk 0:00:15.8]} 32... Qd5 {[%clk 0:00:36.8]} 0-1

[Event "*** Titled Tuesday 3|2 Blitz (Late)"]
[Site "Chess.com"]
[Date "2016.11.01"]
[Round "7"]
[White "DanielNaroditsky"]
[Black "AlexanderL"]
[Result "1-0"]
[WhiteElo "2745"]
[BlackElo "2591"]
[TimeControl "180+2"]
[EndTime "18:32:18 PDT"]
[Termination "DanielNaroditsky won by resignation"]

1. d4 {[%clk 0:03:02]} 1... e6 {[%clk 0:02:59.6]} 2. Bf4 {[%clk 0:02:58.6]} 2...
c5 {[%clk 0:02:58.1]} 3. e3 {[%clk 0:03:00]} 3... Nf6 {[%clk 0:02:58.8]} 4. Nc3
{[%clk 0:03:00.7]} 4... d5 {[%clk 0:02:48.1]} 5. Nb5 {[%clk 0:02:56.3]} 5... Na6
{[%clk 0:02:49.3]} 6. c3 {[%clk 0:02:52.9]} 6... Be7 {[%clk 0:02:50.5]} 7. Nf3
{[%clk 0:02:53.4]} 7... O-O {[%clk 0:02:50.9]} 8. Be2 {[%clk 0:02:52.9]} 8...
Bd7 {[%clk 0:02:51.1]} 9. a4 {[%clk 0:02:53.6]} 9... c4 {[%clk 0:02:35.5]} 10.
Ne5 {[%clk 0:02:48.9]} 10... Bxb5 {[%clk 0:02:33.9]} 11. axb5 {[%clk 0:02:50.8]}
11... Nc7 {[%clk 0:02:35.1]} 12. Qa4 {[%clk 0:02:39.9]} 12... a6 {[%clk
0:02:34]} 13. bxa6 {[%clk 0:02:36.7]} 13... Rxa6 {[%clk 0:02:33.6]} 14. Qd1
{[%clk 0:02:38.4]} 14... Rxa1 {[%clk 0:02:24.4]} 15. Qxa1 {[%clk 0:02:40.3]}
15... Bd6 {[%clk 0:02:19.4]} 16. O-O {[%clk 0:02:37.1]} 16... Qa8 {[%clk
0:02:18.5]} 17. Qb1 {[%clk 0:02:20.5]} 17... b5 {[%clk 0:02:17.9]} 18. h4 {[%clk
0:02:00.5]} 18... Qb7 {[%clk 0:02:03.9]} 19. h5 {[%clk 0:01:55.2]} 19... Ne4
{[%clk 0:01:48.2]} 20. Qc2 {[%clk 0:01:33.8]} 20... f6 {[%clk 0:01:22.7]} 21.
Nd7 {[%clk 0:01:34]} 21... Bxf4 {[%clk 0:01:06.5]} 22. Nxf8 {[%clk 0:01:34.2]}
22... Bd6 {[%clk 0:00:48.2]} 23. Nd7 {[%clk 0:01:31.1]} 23... Qc6 {[%clk
0:00:43.5]} 24. Nc5 {[%clk 0:01:26.6]} 24... Nxc5 {[%clk 0:00:40.4]} 25. dxc5
{[%clk 0:01:28.5]} 25... Qxc5 {[%clk 0:00:41.7]} 26. Ra1 {[%clk 0:01:19.2]}
26... f5 {[%clk 0:00:41.2]} 27. Bf3 {[%clk 0:00:59.7]} 27... Kf7 {[%clk
0:00:38]} 28. b3 {[%clk 0:00:52.3]} 28... Be5 {[%clk 0:00:31.6]} 29. b4 {[%clk
0:00:51.1]} 29... Qc6 {[%clk 0:00:30.1]} 30. g4 {[%clk 0:00:45.1]} 30... g6
{[%clk 0:00:29.7]} 31. hxg6+ {[%clk 0:00:47]} 31... hxg6 {[%clk 0:00:31.1]} 32.
Kg2 {[%clk 0:00:48.9]} 32... Kf6 {[%clk 0:00:26.5]} 33. Rh1 {[%clk 0:00:47.2]}
33... Kg7 {[%clk 0:00:21.4]} 34. Qa2 {[%clk 0:00:37.8]} 34... Bxc3 {[%clk
0:00:18.3]} 35. Qa7 {[%clk 0:00:38.8]} 35... Bxb4 {[%clk 0:00:15.1]} 36. Qd4+
{[%clk 0:00:39.8]} 36... Kf7 {[%clk 0:00:09.1]} 37. Rh7+ {[%clk 0:00:26.6]}
37... Ke8 {[%clk 0:00:09.7]} 38. Qf6 {[%clk 0:00:25.9]} 38... Qd6 {[%clk
0:00:05.4]} 39. Qf7+ {[%clk 0:00:25.9]} 39... Kd8 {[%clk 0:00:06.6]} 40. Rh8+
{[%clk 0:00:27.8]} 1-0

[Event "*** Titled Tuesday 3|2 Blitz (Late)"]
[Site "Chess.com"]
[Date "2016.11.01"]
[Round "7"]
[White "Gau_truc_lon"]
[Black "FearlessKing64"]
[Result "0-1"]
[WhiteElo "2195"]
[BlackElo "2160"]
[TimeControl "180+2"]
[EndTime "18:32:34 PDT"]
[Termination "FearlessKing64 won by resignation"]

1. Nf3 {[%clk 0:03:01.9]} 1... Nf6 {[%clk 0:02:59.6]} 2. g3 {[%clk 0:03:02.6]}
2... g6 {[%clk 0:03:01.1]} 3. Bg2 {[%clk 0:03:04.5]} 3... Bg7 {[%clk 0:03:02.6]}
4. O-O {[%clk 0:03:06.3]} 4... O-O {[%clk 0:03:04]} 5. c4 {[%clk 0:03:07.1]}
5... d5 {[%clk 0:03:04]} 6. cxd5 {[%clk 0:03:07.9]} 6... Nxd5 {[%clk 0:03:04.6]}
7. Nc3 {[%clk 0:03:08.3]} 7... c6 {[%clk 0:03:04.6]} 8. d4 {[%clk 0:03:07.9]}
8... Nb6 {[%clk 0:02:59.6]} 9. b3 {[%clk 0:02:50.7]} 9... c5 {[%clk 0:02:58.2]}
10. Bf4 {[%clk 0:02:01.9]} 10... cxd4 {[%clk 0:02:55]} 11. Nb5 {[%clk
0:02:02.9]} 11... Nc6 {[%clk 0:02:53]} 12. Bc7 {[%clk 0:01:44.5]} 12... Qd7
{[%clk 0:02:40.3]} 13. Ng5 {[%clk 0:01:06.9]} 13... Nd5 {[%clk 0:02:30.8]} 14.
Bh3 {[%clk 0:00:53.1]} 14... e6 {[%clk 0:02:19.4]} 15. Bd6 {[%clk 0:00:41]}
15... Nc3 {[%clk 0:02:04.5]} 16. Nxc3 {[%clk 0:00:27.2]} 16... Qxd6 {[%clk
0:02:05.1]} 17. Nge4 {[%clk 0:00:22.6]} 17... Qe5 {[%clk 0:01:54.4]} 18. f4
{[%clk 0:00:22.9]} 18... Qh5 {[%clk 0:01:44.7]} 19. Ng5 {[%clk 0:00:18.6]} 19...
dxc3 {[%clk 0:01:37.6]} 20. Bg2 {[%clk 0:00:15]} 20... Rd8 {[%clk 0:01:01.3]}
21. Qe1 {[%clk 0:00:16]} 21... c2 {[%clk 0:00:49.9]} 22. Rc1 {[%clk 0:00:13.9]}
22... Nd4 {[%clk 0:00:45.9]} 23. Rf2 {[%clk 0:00:12.6]} 23... f6 {[%clk
0:00:43.9]} 24. Ne4 {[%clk 0:00:12.5]} 24... Qb5 {[%clk 0:00:28.2]} 25. e3
{[%clk 0:00:10.8]} 25... f5 {[%clk 0:00:21.8]} 26. Nc3 {[%clk 0:00:10]} 26...
Qb4 {[%clk 0:00:21.5]} 27. exd4 {[%clk 0:00:02.4]} 27... Bxd4 {[%clk 0:00:21.7]}
28. Rxc2 {[%clk 0:00:02.9]} 28... Bxf2+ {[%clk 0:00:19.8]} 29. Qxf2 {[%clk
0:00:04.8]} 29... Bd7 {[%clk 0:00:17.4]} 30. Bxb7 {[%clk 0:00:05.5]} 30... Rab8
{[%clk 0:00:18.3]} 31. Bg2 {[%clk 0:00:05.5]} 31... Rdc8 {[%clk 0:00:19.3]} 32.
Qe1 {[%clk 0:00:05]} 32... Qd4+ {[%clk 0:00:18.8]} 33. Kh1 {[%clk 0:00:05]}
33... e5 {[%clk 0:00:18.9]} 34. Ne2 {[%clk 0:00:05.3]} 34... Qe3 {[%clk
0:00:17.3]} 35. Rxc8+ {[%clk 0:00:06.4]} 35... Rxc8 {[%clk 0:00:18.5]} 36. fxe5
{[%clk 0:00:08]} 36... Rc2 {[%clk 0:00:17.1]} 37. Bd5+ {[%clk 0:00:07.7]} 37...
Kg7 {[%clk 0:00:17.6]} 38. e6 {[%clk 0:00:09]} 38... Rxe2 {[%clk 0:00:16.8]} 39.
Qa1+ {[%clk 0:00:10]} 39... Qe5 {[%clk 0:00:17.2]} 40. Qxe5+ {[%clk 0:00:08.4]}
40... Rxe5 {[%clk 0:00:18.2]} 41. e7 {[%clk 0:00:09]} 41... Rxe7 {[%clk
0:00:18.2]} 0-1

[Event "*** Titled Tuesday 3|2 Blitz (Late)"]
[Site "Chess.com"]
[Date "2016.11.01"]
[Round "7"]
[White "howitzer14"]
[Black "uzbektiger95"]
[Result "1/2-1/2"]
[WhiteElo "2777"]
[BlackElo "2638"]
[TimeControl "180+2"]
[EndTime "18:33:04 PDT"]
[Termination "Game drawn by agreement"]

1. e4 {[%clk 0:03:01.9]} 1... d5 {[%clk 0:03:01.3]} 2. exd5 {[%clk 0:03:01.9]}
2... Qxd5 {[%clk 0:03:03.2]} 3. Nf3 {[%clk 0:03:03.4]} 3... g6 {[%clk
0:03:03.2]} 4. d4 {[%clk 0:03:02.7]} 4... Bg7 {[%clk 0:03:04.6]} 5. c4 {[%clk
0:03:01.5]} 5... Qd8 {[%clk 0:03:05.7]} 6. Nc3 {[%clk 0:03:03.3]} 6... Nh6
{[%clk 0:03:07.3]} 7. Be2 {[%clk 0:02:51]} 7... Nf5 {[%clk 0:03:07.2]} 8. d5
{[%clk 0:02:51.1]} 8... O-O {[%clk 0:03:07.5]} 9. O-O {[%clk 0:02:51]} 9... c6
{[%clk 0:03:09]} 10. Bf4 {[%clk 0:02:46.6]} 10... cxd5 {[%clk 0:03:09.7]} 11.
cxd5 {[%clk 0:02:43.6]} 11... a6 {[%clk 0:03:10.5]} 12. Rc1 {[%clk 0:02:41.1]}
12... b5 {[%clk 0:03:10.7]} 13. Bd3 {[%clk 0:02:38.3]} 13... Nd6 {[%clk
0:03:10.2]} 14. Re1 {[%clk 0:02:36.3]} 14... Bb7 {[%clk 0:03:10]} 15. Ne5 {[%clk
0:02:32]} 15... Nd7 {[%clk 0:03:05.5]} 16. Nc6 {[%clk 0:02:30.3]} 16... Bxc6
{[%clk 0:03:03.6]} 17. dxc6 {[%clk 0:02:32.2]} 17... Nb6 {[%clk 0:03:04.7]} 18.
Qe2 {[%clk 0:02:13.9]} 18... Re8 {[%clk 0:03:03.1]} 19. Ne4 {[%clk 0:02:05.5]}
19... Nf5 {[%clk 0:02:55.4]} 20. c7 {[%clk 0:02:03.6]} 20... Qc8 {[%clk
0:02:55.9]} 21. Ng5 {[%clk 0:01:58.8]} 21... Nd4 {[%clk 0:02:54.1]} 22. Qe3
{[%clk 0:01:53.4]} 22... e5 {[%clk 0:02:52.1]} 23. Bg3 {[%clk 0:01:54.6]} 23...
f5 {[%clk 0:02:52.2]} 24. f4 {[%clk 0:01:47.3]} 24... exf4 {[%clk 0:02:44]} 25.
Qxf4 {[%clk 0:01:37.5]} 25... Qd7 {[%clk 0:02:44.1]} 26. Rxe8+ {[%clk
0:01:35.8]} 26... Rxe8 {[%clk 0:02:44.5]} 27. Qd6 {[%clk 0:01:34.3]} 27... Qxd6
{[%clk 0:02:40.6]} 28. Bxd6 {[%clk 0:01:36.2]} 28... Nc8 {[%clk 0:02:37.4]} 29.
Bg3 {[%clk 0:01:31.6]} 29... h6 {[%clk 0:02:37.7]} 30. Nf3 {[%clk 0:01:31.5]}
30... Kf7 {[%clk 0:02:36.5]} 31. b3 {[%clk 0:01:28.6]} 31... Nxf3+ {[%clk
0:02:18.2]} 32. gxf3 {[%clk 0:01:30.5]} 32... Bb2 {[%clk 0:02:17.3]} 33. Rc2
{[%clk 0:01:27]} 33... Ba3 {[%clk 0:02:16.2]} 34. h4 {[%clk 0:01:21.7]} 34... h5
{[%clk 0:02:13.4]} 35. Kf2 {[%clk 0:01:18.9]} 35... Re6 {[%clk 0:02:12]} 36. Bf4
{[%clk 0:01:16.9]} 36... Ke7 {[%clk 0:01:49.4]} 37. Kg3 {[%clk 0:01:15.6]} 37...
Kd7 {[%clk 0:01:48.3]} 38. Rd2 {[%clk 0:01:14.7]} 38... Kc6 {[%clk 0:01:45.1]}
39. Rc2+ {[%clk 0:01:11.6]} 39... Kb7 {[%clk 0:01:42.7]} 40. Bf1 {[%clk
0:01:07.4]} 40... Re1 {[%clk 0:01:36.9]} 41. Be2 {[%clk 0:01:05.3]} 41... Rb1
{[%clk 0:01:34.1]} 42. Be5 {[%clk 0:01:03]} 42... Rg1+ {[%clk 0:01:32.1]} 43.
Kf2 {[%clk 0:00:56.8]} 43... Rc1 {[%clk 0:01:26]} 44. Rxc1 {[%clk 0:00:52.7]}
44... Bxc1 {[%clk 0:01:27.9]} 45. f4 {[%clk 0:00:54.5]} 45... Nb6 {[%clk
0:01:24.2]} 46. Bf3+ {[%clk 0:00:56.4]} 46... Kc8 {[%clk 0:01:23.3]} 47. Bc6
{[%clk 0:00:55.2]} 47... Nd7 {[%clk 0:01:21.6]} 48. Bd6 {[%clk 0:00:56]} 48...
Nf6 {[%clk 0:01:22.7]} 49. Ke2 {[%clk 0:00:51.7]} 49... Bb2 {[%clk 0:01:20.8]}
50. Kd3 {[%clk 0:00:51.2]} 50... Ne4 {[%clk 0:01:07.5]} 51. Bb4 {[%clk
0:00:42.1]} 51... Nf6 {[%clk 0:00:58.6]} 52. Bd6 {[%clk 0:00:40.9]} 52... Ne4
{[%clk 0:00:58.2]} 53. Bxe4 {[%clk 0:00:29.1]} 53... fxe4+ {[%clk 0:00:58.8]}
54. Kxe4 {[%clk 0:00:31]} 54... Bf6 {[%clk 0:00:57.4]} 55. f5 {[%clk 0:00:32.4]}
55... gxf5+ {[%clk 0:00:55.9]} 56. Kxf5 {[%clk 0:00:34.3]} 56... Bxh4 {[%clk
0:00:57.6]} 57. Kg6 {[%clk 0:00:35.4]} 57... Bf2 {[%clk 0:00:56.1]} 58. Kxh5
{[%clk 0:00:35.5]} 58... Bb6 {[%clk 0:00:56.7]} 59. Kg4 {[%clk 0:00:34.3]}
1/2-1/2

[Event "*** Titled Tuesday 3|2 Blitz (Late)"]
[Site "Chess.com"]
[Date "2016.11.01"]
[Round "7"]
[White "Zlatan56"]
[Black "PaulfromSPb"]
[Result "1/2-1/2"]
[WhiteElo "2640"]
[BlackElo "2504"]
[TimeControl "180+2"]
[EndTime "18:34:34 PDT"]
[Termination "Game drawn - insufficient material"]

1. Nf3 {[%clk 0:03:02]} 1... Nf6 {[%clk 0:03:00.6]} 2. g3 {[%clk 0:03:01.7]}
2... b5 {[%clk 0:02:59]} 3. Bg2 {[%clk 0:03:02.7]} 3... Bb7 {[%clk 0:03:00]} 4.
Na3 {[%clk 0:03:01.6]} 4... b4 {[%clk 0:02:58]} 5. Nc4 {[%clk 0:03:00.6]} 5...
a5 {[%clk 0:02:57.3]} 6. O-O {[%clk 0:02:58.1]} 6... e6 {[%clk 0:02:57.3]} 7. b3
{[%clk 0:02:50.1]} 7... d5 {[%clk 0:02:53.8]} 8. Nce5 {[%clk 0:02:49.8]} 8...
Nbd7 {[%clk 0:02:50.4]} 9. Bb2 {[%clk 0:02:49.4]} 9... Bd6 {[%clk 0:02:51.1]}
10. d3 {[%clk 0:02:43.1]} 10... O-O {[%clk 0:02:51.4]} 11. Qe1 {[%clk
0:02:37.6]} 11... c5 {[%clk 0:02:51.7]} 12. Nxd7 {[%clk 0:02:34.8]} 12... Nxd7
{[%clk 0:02:52.3]} 13. a4 {[%clk 0:02:33.6]} 13... Qc7 {[%clk 0:02:48.8]} 14. e4
{[%clk 0:02:33.2]} 14... c4 {[%clk 0:02:47.1]} 15. Nd4 {[%clk 0:02:27.8]} 15...
c3 {[%clk 0:02:35.1]} 16. Bc1 {[%clk 0:02:27.8]} 16... Bc5 {[%clk 0:02:29.8]}
17. Nb5 {[%clk 0:02:26.6]} 17... Qb6 {[%clk 0:02:30.9]} 18. exd5 {[%clk
0:02:21.4]} 18... Bxd5 {[%clk 0:02:28.4]} 19. Bxd5 {[%clk 0:02:21.1]} 19... exd5
{[%clk 0:02:29.4]} 20. Bf4 {[%clk 0:02:22.7]} 20... Rae8 {[%clk 0:02:26.7]} 21.
Qd1 {[%clk 0:02:24]} 21... d4 {[%clk 0:02:13]} 22. Qf3 {[%clk 0:02:21.8]} 22...
Re7 {[%clk 0:02:08.8]} 23. Rae1 {[%clk 0:02:21.1]} 23... Rxe1 {[%clk 0:01:50.1]}
24. Rxe1 {[%clk 0:02:23]} 24... Nf6 {[%clk 0:01:50.1]} 25. Kg2 {[%clk
0:02:12.9]} 25... h6 {[%clk 0:01:49.9]} 26. h4 {[%clk 0:02:09.9]} 26... Rc8
{[%clk 0:01:47.4]} 27. Be5 {[%clk 0:02:07]} 27... Nd7 {[%clk 0:01:46.1]} 28.
Bxg7 {[%clk 0:01:56.1]} 28... Kxg7 {[%clk 0:01:38.2]} 29. Qg4+ {[%clk 0:01:56]}
29... Qg6 {[%clk 0:01:38.1]} 30. Qxd7 {[%clk 0:01:55.9]} 30... Qc6+ {[%clk
0:01:39.1]} 31. Qxc6 {[%clk 0:01:56.4]} 31... Rxc6 {[%clk 0:01:41]} 32. f4
{[%clk 0:01:51.4]} 32... f5 {[%clk 0:01:38.3]} 33. Re5 {[%clk 0:01:49.7]} 33...
Kf6 {[%clk 0:01:38.2]} 34. h5 {[%clk 0:01:46.7]} 34... Bb6 {[%clk 0:01:36.1]}
35. Kf3 {[%clk 0:01:28.6]} 35... Bc5 {[%clk 0:01:17.6]} 36. g4 {[%clk
0:01:24.6]} 36... fxg4+ {[%clk 0:01:17.9]} 37. Kxg4 {[%clk 0:01:26.5]} 37... Rc8
{[%clk 0:01:18.6]} 38. Kf3 {[%clk 0:01:26.2]} 38... Bb6 {[%clk 0:01:15.9]} 39.
Rd5 {[%clk 0:01:24.9]} 39... Bc5 {[%clk 0:01:17]} 40. Ke4 {[%clk 0:01:21.9]}
40... Re8+ {[%clk 0:01:16.5]} 41. Re5 {[%clk 0:01:22.7]} 41... Rc8 {[%clk
0:01:17.4]} 42. Nxd4 {[%clk 0:01:05.5]} 42... Bxd4 {[%clk 0:01:18.4]} 43. Kxd4
{[%clk 0:01:07.4]} 43... Rg8 {[%clk 0:01:20]} 44. Rxa5 {[%clk 0:01:07.2]} 44...
Rg2 {[%clk 0:01:20.4]} 45. Rb5 {[%clk 0:01:07.8]} 45... Rxc2 {[%clk 0:01:20.4]}
46. Rxb4 {[%clk 0:01:08.7]} 46... Rc1 {[%clk 0:01:20]} 47. Rb6+ {[%clk
0:01:04.5]} 47... Kf5 {[%clk 0:01:20.8]} 48. Rxh6 {[%clk 0:01:05.2]} 48... c2
{[%clk 0:01:16.9]} 49. Kc3 {[%clk 0:01:02.1]} 49... Kxf4 {[%clk 0:01:14.4]} 50.
Rc6 {[%clk 0:01:00.3]} 50... Ke3 {[%clk 0:01:13.1]} 51. Kb2 {[%clk 0:00:53.9]}
51... Kd2 {[%clk 0:01:13.8]} 52. h6 {[%clk 0:00:39.7]} 52... Rb1+ {[%clk
0:01:13.5]} 53. Ka3 {[%clk 0:00:40.4]} 53... c1=Q+ {[%clk 0:00:59.6]} 54. Rxc1
{[%clk 0:00:41.1]} 54... Rxc1 {[%clk 0:01:00.8]} 55. Kb4 {[%clk 0:00:41.6]}
55... Kxd3 {[%clk 0:01:00.4]} 56. a5 {[%clk 0:00:41.8]} 56... Rh1 {[%clk
0:00:48.3]} 57. a6 {[%clk 0:00:40.1]} 57... Rxh6 {[%clk 0:00:48.4]} 58. Kb5
{[%clk 0:00:40.8]} 58... Kc3 {[%clk 0:00:39.5]} 59. a7 {[%clk 0:00:39.1]} 59...
Rh8 {[%clk 0:00:37.4]} 60. Kb6 {[%clk 0:00:37.6]} 60... Kb4 {[%clk 0:00:31.8]}
61. Kb7 {[%clk 0:00:36.9]} 61... Rh7+ {[%clk 0:00:32]} 62. Kb8 {[%clk
0:00:37.5]} 62... Rh8+ {[%clk 0:00:25.8]} 63. Kb7 {[%clk 0:00:38.3]} 63... Rh7+
{[%clk 0:00:27]} 64. Kb8 {[%clk 0:00:39.2]} 64... Kb5 {[%clk 0:00:20.3]} 65.
a8=Q {[%clk 0:00:34.5]} 65... Rh8+ {[%clk 0:00:14.4]} 66. Ka7 {[%clk 0:00:35]}
66... Rxa8+ {[%clk 0:00:14.6]} 67. Kxa8 {[%clk 0:00:35.9]} 67... Kb4 {[%clk
0:00:16]} 68. Kb7 {[%clk 0:00:34.8]} 68... Kxb3 {[%clk 0:00:17.1]} 1/2-1/2